Workbook

Sheet Лист1
A1: Школа | C1: МБОУ "Средняя общеобразовательная школа № 1" НМР РТ | F1: Согласование: | G1: должность | H1: Директор
A2: Типовое примерное меню приготавливаемых блюд | G2: фамилия | H2: Юнусов М.Р.
A3: Возрастная категория | E3: 7-11 лет | G3: дата | H3: 14 | I3: 1 | J3: 2026
H4: день | I4: месяц | J4: год
A5: Неделя | B5: День недели | C5: Прием пищи | D5: Раздел меню | E5: Блюда | F5: Вес блюда, г | G5: Белки | H5: Жиры | I5: Углеводы | J5: Калорийность | K5: № рецептуры | L5: Цена
A6: 1 | B6: 1 | C6: Завтрак | D6: хлеб бел. | E6: Бутерброд с маслом сливочным | F6: 40 | G6: 2.36 | H6: 7.49 | I6: 14.89 | J6: 136 | L6: 46.12
D7: гор.блюдо | E7: Каша рисовая молочная | F7: 185 | G7: 9.24 | H7: 9.16 | I7: 28.23 | J7: 218.12
D8: гор.напиток | E8: Чай с молоком и сахаром | F8: 200 | G8: 1.52 | H8: 1.35 | I8: 8.92 | J8: 53.07
D9: хлеб бел. | E9: Батон нарезной | F9: 75 | G9: 5.60 | H9: 2.16 | I9: 35.36 | J9: 195.52
D12: итого | F12: =F6+F7+F8+F9 -> 500 | G12: =SUM(G6:G11) -> 18.72 | H12: =SUM(H6:H11) -> 20.16 | I12: 87.4 | J12: 602.71 | L12: =SUM(L6:L11) -> 46.12
A13: =A6 -> 1 | B13: =B6 -> 1 | C13: Обед | D13: 1 блюдо | E13: Борщ из свежей капусты с картофелем, со сметаной | F13: 205 | G13: 9.07 | H13: 13.01 | I13: 16.03 | J13: 233.10 | L13: 92.89
D14: 2 блюдо | E14: Сосиски отварные | F14: 100 | G14: 7.29 | H14: 2.01 | I14: 5.98 | J14: 95.00
D15: гарнир | E15: Пюре картофельное | F15: 183 | G15: 5.90 | H15: 10.71 | I15: 36.90 | J15: 203.00
D16: доп.гарнир | E16: Капуста квашеная | F16: 50 | G16: 0.84 | H16: 2.50 | I16: 4.20 | J16: 42.84
D17: напиток | E17: Напиток из сухофруктов | F17: 200 | G17: 0.70 | H17: 0.10 | I17: 22.03 | J17: 92.90
D18: хлеб бел. | E18: Хлеб пшеничный | F18: 20 | G18: 1.52 | H18: 0.16 | I18: 9.84 | J18: 47.00
D19: хлеб черн. | E19: Хлеб ржаной | F19: 45 | G19: 2.97 | H19: 0.54 | I19: 17.82 | J19: 89.1
D20: итого | F20: =SUM(F13:F19) -> 803 | G20: =SUM(G13:G19) -> 28.29 | H20: =SUM(H13:H19) -> 29.03 | I20: =SUM(I13:I19) -> 112.80 | J20: =SUM(J13:J19) -> 802.94 | L20: 92.89
A21: =A6 -> 1 | B21: =B6 -> 1 | C21: Итого за день: | F21: =F12+F20 -> 1303 | G21: =G12+G20 -> 47.01 | H21: =H12+H20 -> 49.194 | I21: =I12+I20 -> 200.2 | J21: =J12+J20 -> 1405.65 | L21: =L12+L20 -> 139.01
A22: 1 | B22: 2 | C22: Завтрак | D22: фрукты | E22: Яблоки | F22: 100 | G22: 0.40 | H22: 0.40 | I22: 9.80 | J22: 47.00 | L22: 46.12
D23: гор.блюдо | E23: Каша гречневая молочная вязкая | F23: 155 | G23: 11.47 | H23: 14.42 | I23: 36.78 | J23: 356.10
D24: гор.напиток | E24: Кофейный напиток с молоком | F24: 200 | G24: 3.17 | H24: 2.68 | I24: 9.98 | J24: 60.10
D25: хлеб бел. | E25: Батон нарезной | F25: 45 | G25: 3.37 | H25: 1.30 | I25: 23.13 | J25: 117.90
D28: итого | F28: =F22+F23+F24+F25 -> 500 | G28: =SUM(G22:G27) -> 18.41 | H28: =SUM(H22:H27) -> 18.80 | I28: =SUM(I22:I27) -> 79.69 | J28: =SUM(J22:J27) -> 581.10 | L28: =SUM(L22:L27) -> 46.12
A29: =A22 -> 1 | B29: =B22 -> 2 | C29: Обед | D29: 1 блюдо | E29: Рассольник Ленинградский со сметаной | F29: 210 | G29: 11.9 | H29: 16.52 | I29: 23.56 | J29: 299.25 | L29: 92.89
D30: 2 блюдо | E30: Биточки рыбные из минтая с овощами | F30: 100 | G30: 5.58 | H30: 6.28 | I30: 20.95 | J30: 160.2
D31: гарнир | E31: Макаронные изделия (рожки) отварные | F31: 153 | G31: 5.68 | H31: 2.88 | I31: 31.96 | J31: 176.1
D32: напиток | E32: Напиток из яблок и изюма | F32: 200 | G32: 0.2 | H32: 0.1 | I32: 19.82 | J32: 68.12
D33: хлеб черн. | E33: Хлеб ржаной | F33: 40 | G33: 2.64 | H33: 0.48 | I33: 15.84 | J33: 79.2
D36: итого | F36: =SUM(F29:F35) -> 703 | G36: =SUM(G29:G35) -> 26.00 | H36: =SUM(H29:H35) -> 26.26 | I36: =SUM(I29:I35) -> 112.13 | J36: =SUM(J29:J35) -> 782.87 | L36: =L28+L29 -> 139.01
A37: =A22 -> 1 | B37: =B22 -> 2 | C37: Итого за день: | F37: =F28+F36 -> 1203 | G37: =G28+G36 -> 44.41 | H37: =H28+H36 -> 45.06 | I37: =I28+I36 -> 191.82 | J37: =J28+J36 -> 1363.97 | L37: =L28+L36 -> 185.13
A38: 1 | B38: 3 | C38: Завтрак | D38: хлеб бел. | E38: Бутерброд с повидлом | F38: 60 | G38: 2.37 | H38: 0.87 | I38: 34.92 | J38: 153.6 | L38: 46.12
D39: гор.блюдо | E39: Каша кукурузная молочная | F39: 200 | G39: 13.6 | H39: 16.77 | I39: 22.55 | J39: 311.5
D40: гор.напиток | E40: Чай с сахаром и лимоном | F40: 200 | G40: 0.13 | H40: 0.02 | I40: 8.2 | J40: 34.02
D41: хлеб бел. | E41: Батон нарезной | F41: 40 | G41: 2.99 | H41: 1.15 | I41: 20.56 | J41: 104.8
D44: итого | F44: =F38+F39+F40+F41 -> 500 | G44: =SUM(G38:G43) -> 19.09 | H44: =SUM(H38:H43) -> 18.81 | I44: =SUM(I38:I43) -> 86.23 | J44: =SUM(J38:J43) -> 603.92 | L44: =SUM(L38:L43) -> 46.12
A45: =A38 -> 1 | B45: =B38 -> 3 | C45: Обед | D45: 1 блюдо | E45: Суп-лапша домашняя с картофелем | F45: 200 | G45: 8.35 | H45: 9.83 | I45: 25.3 | J45: 192.4 | L45: 92.89
D46: 2 блюдо | E46: Тефтели мясные с геркулесом | F46: 90 | G46: 6.3 | H46: 11.91 | I46: 14.86 | J46: 169.59
D47: гарнир | E47: Каша пшеничная (вязкая) | F47: 153 | G47: 6.7 | H47: 4.38 | I47: 35.99 | J47: 227
D48: напиток | E48: Напиток из плодов шиповника | F48: 200 | G48: 0.6 | H48: 0.1 | I48: 20.2 | J48: 123.6
D49: хлеб бел. | E49: Хлеб пшеничный | F49: 30 | G49: 2.28 | H49: 0.24 | I49: 14.76 | J49: 70.5
D50: хлеб черн. | E50: Хлеб ржаной | F50: 30 | G50: 1.98 | H50: 0.36 | I50: 11.88 | J50: 59.4
D53: итого | F53: =SUM(F45:F52) -> 703 | G53: =SUM(G45:G52) -> 26.21 | H53: =SUM(H45:H52) -> 26.82 | I53: =SUM(I45:I52) -> 122.99 | J53: =SUM(J45:J52) -> 842.49 | L53: =SUM(L45:L52) -> 92.89
A54: =A38 -> 1 | B54: =B38 -> 3 | C54: Итого за день: | F54: =F44+F53 -> 1203 | G54: =G44+G53 -> 45.3 | H54: =H44+H53 -> 45.63 | I54: =I44+I53 -> 209.22 | J54: =J44+J53 -> 1446.41 | L54: =L44+L53 -> 139.01
A55: 1 | B55: 4 | C55: Завтрак | D55: хлеб бел. | E55: Бутерброд с сыром и маслом сливочным | F55: 50 | G55: 6.27 | H55: 7.86 | I55: 14.83 | J55: 155 | L55: 46.12
D56: гор.блюдо | E56: Каша геркулесовая молочная вязкая | F56: 185 | G56: 4.99 | H56: 7.4 | I56: 28.81 | J56: 206.3
D57: гор.напиток | E57: Какао с молоком | F57: 200 | G57: 4.08 | H57: 3.54 | I57: 2.61 | J57: 58.6
D58: хлеб бел. | E58: Батон нарезной | F58: 65 | G58: 4.87 | H58: 1.88 | I58: 33.41 | J58: 170.3
D61: итого | F61: =F55+F56+F57+F58 -> 500 | G61: =SUM(G55:G60) -> 20.21 | H61: =SUM(H55:H60) -> 20.68 | I61: =SUM(I55:I60) -> 79.66 | J61: =SUM(J55:J60) -> 590.2 | L61: =L55 -> 46.12
A62: =A55 -> 1 | B62: =B55 -> 4 | C62: Обед | D62: 1 блюдо | E62: Щи из свежей капусты с картофелем, со сметаной | F62: 210 | G62: 7.94 | H62: 8.91 | I62: 21.94 | J62: 245.9 | L62: 92.89
D63: 2 блюдо | E63: Плов из куриной грудки | F63: 200 | G63: 15.42 | H63: 18.96 | I63: 49.93 | J63: 418.5
D64: доп.гарнир | E64: Морковь свежая | F64: 50 | G64: 0.73 | H64: 0.05 | I64: 3.87 | J64: 16.5
D65: напиток | E65: Напиток из урюка | F65: 200 | G65: 0.75 | H65: 0.06 | I65: 15.95 | J65: 68.52
D66: хлеб черн. | E66: Хлеб ржаной | F66: 50 | G66: 3.3 | H66: 0.6 | I66: 19.8 | J66: 99
D69: итого | F69: =SUM(F62:F68) -> 710 | G69: =SUM(G62:G68) -> 28.14 | H69: =SUM(H62:H68) -> 28.58 | I69: =SUM(I62:I68) -> 111.49 | J69: =SUM(J62:J68) -> 848.42 | L69: =SUM(L62:L68) -> 92.89
A70: =A55 -> 1 | B70: =B55 -> 4 | C70: Итого за день: | F70: =F61+F69 -> 1210 | G70: =G61+G69 -> 48.35 | H70: 49.26 | I70: 191.15 | J70: 1438.62 | L70: =L61+L69 -> 139.01
A71: 1 | B71: 5 | C71: Завтрак | D71: фрукты | E71: Яблоки | F71: 100 | G71: 0.40 | H71: 0.40 | I71: 9.80 | J71: 47.00 | L71: 46.12
D72: гор.блюдо | E72: Сырники из творога со сгущенным молоком | F72: 150 | G72: 15.55 | H72: 18.35 | I72: 40.33 | J72: 398.93
D73: гор.напиток | E73: Чай с сахаром | F73: 200 | G73: 0.07 | H73: 0.02 | I73: 8.00 | J73: 32.00
D74: хлеб бел. | E74: Батон нарезной | F74: 50 | G74: 3.75 | H74: 1.45 | I74: 25.70 | J74: 131.00
D77: итого | F77: =F71+F72+F73+F74 -> 500 | G77: =SUM(G71:G76) -> 19.77 | H77: =SUM(H71:H76) -> 20.22 | I77: =SUM(I71:I76) -> 83.83 | J77: =SUM(J71:J76) -> 608.93 | L77: =SUM(L71:L76) -> 46.12
A78: =A71 -> 1 | B78: =B71 -> 5 | C78: Обед | D78: 1 блюдо | E78: Суп картофельный с горохом | F78: 200 | G78: 10.43 | H78: 8.02 | I78: 52.53 | J78: 328.25 | L78: 92.89
D79: 2 блюдо | E79: Овощи тушенные с мясом | F79: 250 | G79: 12.61 | H79: 19.53 | I79: 37.88 | J79: 361.45
D80: напиток | E80: Компот из свежих яблок | F80: 200 | G80: 0.16 | H80: 0.16 | I80: 10.91 | J80: 46.60
D81: хлеб бел. | E81: Хлеб пшеничный | F81: 20 | G81: 1.52 | H81: 0.16 | I81: 9.84 | J81: 47.00
D82: хлеб черн. | E82: Хлеб ржаной | F82: 30 | G82: 1.98 | H82: 0.36 | I82: 11.88 | J82: 59.40
D85: итого | F85: =SUM(F78:F84) -> 700 | G85: =SUM(G78:G84) -> 26.70 | H85: =SUM(H78:H84) -> 28.23 | I85: =SUM(I78:I84) -> 123.04 | J85: =SUM(J78:J84) -> 842.7 | L85: =SUM(L78:L84) -> 92.89
A86: =A71 -> 1 | B86: =B71 -> 5 | C86: Итого за день: | F86: =F77+F85 -> 1200 | G86: =G77+G85 -> 46.47 | H86: =H77+H85 -> 48.45 | I86: =I77+I85 -> 206.87 | J86: =J77+J85 -> 1451.63 | L86: =L77+L85 -> 139.01
A87: 2 | B87: 1 | C87: Завтрак | D87: хлеб бел. | E87: Бутерброд с сыром и маслом сливочным | F87: 50 | G87: 6.27 | H87: 7.86 | I87: 14.83 | J87: 155.00 | L87: 46.12
D88: гор.блюдо | E88: Каша пшеничная молочная | F88: 200 | G88: 10.06 | H88: 10.86 | I88: 35.49 | J88: 280.46
D89: гор.напиток | E89: Чай с сахаром, с яблоком | F89: 200 | G89: 0.11 | H89: 0.06 | I89: 8.97 | J89: 36.68
D90: хлеб бел. | E90: Батон нарезной | F90: 50 | G90: 3.75 | H90: 1.45 | I90: 25.70 | J90: 131.00
D92: итого | F92: 500 | G92: =SUM(G87:G91) -> 20.19 | H92: =SUM(H87:H91) -> 20.23 | I92: =SUM(I87:I91) -> 84.99 | J92: =SUM(J87:J91) -> 603.14 | L92: =SUM(L87:L91) -> 46.12
A93: =A87 -> 2 | B93: =B87 -> 1 | C93: Обед | D93: 1 блюдо | E93: Борщ из свежей капусты с картофелем, со сметаной | F93: 205 | G93: 9.07 | H93: 13.01 | I93: 16.03 | J93: 233.10 | L93: 92.89
D94: 2 блюдо | E94: Котлеты "Нежные" из куриных грудок | F94: 90 | G94: 6.30 | H94: 9.63 | I94: 21.79 | J94: 199.80
D95: гарнир | E95: Макаронные изделия (рожки) отварные | F95: 153 | G95: 5.68 | H95: 2.88 | I95: 31.96 | J95: 176.10
D96: напиток | E96: Напиток из плодов шиповника | F96: 200 | G96: 0.60 | H96: 0.10 | I96: 20.20 | J96: 123.60
D97: хлеб бел. | E97: Хлеб пшеничный | F97: 20 | G97: 1.52 | H97: 0.16 | I97: 9.84 | J97: 47.00
D98: хлеб черн. | E98: Хлеб ржаной | F98: 40 | G98: 2.64 | H98: 0.48 | I98: 15.84 | J98: 79.20
D101: итого | F101: =SUM(F93:F100) -> 708 | G101: =SUM(G93:G100) -> 25.81 | H101: =SUM(H93:H100) -> 26.26 | I101: =SUM(I93:I100) -> 115.66 | J101: =SUM(J93:J100) -> 858.80 | L101: =SUM(L93:L100) -> 92.89
A102: =A87 -> 2 | B102: =B87 -> 1 | C102: Итого за день: | F102: =F92+F101 -> 1208 | G102: =G92+G101 -> 46 | H102: =H92+H101 -> 46.49 | I102: =I92+I101 -> 200.65 | J102: =J92+J101 -> 1461.94 | L102: =L92+L101 -> 139.01
A103: 2 | B103: 2 | C103: Завтрак | D103: сладкое | E103: Булочка сдобная | F103: 50 | G103: 7.05 | H103: 9.3 | I103: 16.80 | J103: 209.00 | L103: 46.12
D104: гор.блюдо | E104: Каша геркулесовая молочная вязкая | F104: 200 | G104: 7.79 | H104: 8.46 | I104: 31.91 | J104: 216.30
D105: гор.напиток | E105: Чай с молоком и сахаром | F105: 200 | G105: 1.52 | H105: 1.35 | I105: 8.92 | J105: 53.07
D106: хлеб бел. | E106: Батон нарезной | F106: 50 | G106: 3.75 | H106: 1.45 | I106: 25.70 | J106: 131.00
D109: итого | F109: =F103+F104+F105+F106 -> 500 | G109: =SUM(G103:G108) -> 20.11 | H109: =SUM(H103:H108) -> 20.56 | I109: =SUM(I103:I108) -> 83.33 | J109: =SUM(J103:J108) -> 609.37 | L109: =L103 -> 46.12
A110: =A103 -> 2 | B110: =B103 -> 2 | C110: Обед | D110: 1 блюдо | E110: Суп гороховый с гренками | F110: 205 | G110: 8.24 | H110: 9.96 | I110: 23.41 | J110: 160.82 | L110: 92.89
D111: 2 блюдо | E111: Жаркое из птицы (куриных грудок) | F111: 200 | G111: 14.01 | H111: 15.47 | I111: 52.76 | J111: 473.54
D112: доп.гарнир | E112: Капуста квашеная | F112: 35 | G112: 0.59 | H112: 1.75 | I112: 2.94 | J112: 29.99
D113: напиток | E113: Напиток из яблок и изюма | F113: 200 | G113: 0.2 | H113: 0.1 | I113: 19.82 | J113: 68.12
D114: хлеб черн. | E114: Хлеб ржаной | F114: 60 | G114: 3.96 | H114: 0.72 | I114: 23.76 | J114: 118.8
D118: итого | F118: =SUM(F110:F117) -> 700 | G118: =SUM(G110:G117) -> 27.00 | H118: =SUM(H110:H117) -> 28 | I118: =SUM(I110:I117) -> 122.69 | J118: =SUM(J110:J117) -> 851.27 | L118: =SUM(L110:L117) -> 92.89
A119: =A103 -> 2 | B119: =B103 -> 2 | C119: Итого за день: | F119: =F109+F118 -> 1200 | G119: =G109+G118 -> 47.11 | H119: =H109+H118 -> 48.56 | I119: =I109+I118 -> 206.02 | J119: =J109+J118 -> 1460.64 | L119: =L109+L118 -> 139.01
A120: 2 | B120: 3 | C120: Завтрак | D120: фрукты | E120: Яблоки | F120: 100 | G120: 0.4 | H120: 0.4 | I120: 9.8 | J120: 47 | L120: 46.12
D121: гор.блюдо | E121: Каша пшенная молочная | F121: 200 | G121: 15.6 | H121: 16.97 | I121: 35.95 | J121: 351.5
D122: гор.напиток | E122: Чай с сахаром и лимоном | F122: 200 | G122: 0.13 | H122: 0.02 | I122: 8.2 | J122: 34.02
D123: хлеб бел. | E123: Батон нарезной | F123: 50 | G123: 3.75 | H123: 1.45 | I123: 25.7 | J123: 131
D126: итого | F126: =F120+F121+F122+F123 -> 550 | G126: =SUM(G120:G125) -> 19.88 | H126: =SUM(H120:H125) -> 18.84 | I126: =SUM(I120:I125) -> 79.65 | J126: =SUM(J120:J125) -> 563.52 | L126: =L120 -> 46.12
A127: =A120 -> 2 | B127: =B120 -> 3 | C127: Обед | D127: 1 блюдо | E127: Суп картофельный с вермешелью | F127: 200 | G127: 6.15 | H127: 7.47 | I127: 12.06 | J127: 204.6 | L127: 92.89
D128: 2 блюдо | E128: Котлеты из говядины с овощами | F128: 100 | G128: 10.58 | H128: 10.98 | I128: 16.21 | J128: 195.2
D129: гарнир | E129: Каша гречневая вязкая | F129: 153 | G129: 4.6 | H129: 7.19 | I129: 35.43 | J129: 185.3
D130: напиток | E130: Напиток из сухофруктов | F130: 200 | G130: 0.7 | H130: 0.1 | I130: 22.03 | J130: 92.9
D131: хлеб бел. | E131: Хлеб пшеничный | F131: 20 | G131: 1.52 | H131: 0.16 | I131: 9.84 | J131: 47
D132: хлеб черн. | E132: Хлеб ржаной | F132: 40 | G132: 2.64 | H132: 0.48 | I132: 15.84 | J132: 79.2
D135: итого | F135: =SUM(F127:F134) -> 713 | G135: =SUM(G127:G134) -> 26.19 | H135: =SUM(H127:H134) -> 26.38 | I135: =SUM(I127:I134) -> 111.41 | J135: =SUM(J127:J134) -> 804.20 | L135: =SUM(L127:L134) -> 92.89
A136: =A120 -> 2 | B136: =B120 -> 3 | C136: Итого за день: | F136: =F126+F135 -> 1263 | G136: =G126+G135 -> 46.07 | H136: =H126+H135 -> 45.22 | I136: =I126+I135 -> 191.06 | J136: =J126+J135 -> 1367.72 | L136: =L126+L135 -> 139.01
A137: 2 | B137: 4 | C137: Завтрак | D137: сладкое | E137: Печенье | F137: 20 | G137: 1.48 | H137: 1.88 | I137: 5.42 | J137: 62.14 | L137: 46.12
D138: доп.гарнир | E138: Омлет натуральный | F138: 50 | G138: 4.7 | H138: 8.27 | I138: 0.14 | J138: 31.5
D139: гор.блюдо | E139: Каша кукурузная молочная | F139: 155 | G139: 6.94 | H139: 7.95 | I139: 30.5 | J139: 236.73
D140: гор.напиток | E140: Чай с сахаром, с шиповником | F140: 200 | G140: 0.13 | H140: 0.02 | I140: 8.2 | J140: 34.02
D141: хлеб бел. | E141: Батон нарезной | F141: 75 | G141: 5.6 | H141: 2.16 | I141: 35.36 | J141: 195.52
D143: итого | F143: =F137+F138+F139+F140+F141 -> 500 | G143: =SUM(G137:G142) -> 18.85 | H143: =SUM(H137:H142) -> 20.28 | I143: =SUM(I137:I142) -> 79.62 | J143: =SUM(J137:J142) -> 559.91 | L143: =L137 -> 46.12
A144: =A137 -> 2 | B144: =B137 -> 4 | C144: Обед | D144: 1 блюдо | E144: Щи из свежей капусты с картофелем | F144: 250 | G144: 8.04 | H144: 8.00 | I144: 26.50 | J144: 211.90 | L144: 92.89
D145: 2 блюдо | E145: Биточки рыбные из минтая с молочным соусом | F145: 100 | G145: 7.38 | H145: 8.98 | I145: 22.95 | J145: 190.20
D146: гарнир | E146: Пюре картофельное | F146: 180 | G146: 5.70 | H146: 8.30 | I146: 14.90 | J146: 189.00
D147: доп.гарнир | E147: Свекла отварная | F147: 30 | G147: 0.42 | H147: 1.80 | I147: 2.48 | J147: 27.84
D148: напиток | E148: Сок фруктовый | F148: 200 | G148: 1.00 | H148: 0.00 | I148: 20.20 | J148: 84.80
D149: хлеб бел. | E149: Хлеб пшеничный | F149: 20 | G149: 1.52 | H149: 0.16 | I149: 9.84 | J149: 47
D150: хлеб черн. | E150: Хлеб ржаной | F150: 40 | G150: 2.64 | H150: 0.48 | I150: 15.84 | J150: 79.2
D152: итого | F152: =SUM(F144:F151) -> 820 | G152: =SUM(G144:G151) -> 26.7 | H152: =SUM(H144:H151) -> 27.72 | I152: =SUM(I144:I151) -> 112.71 | J152: =SUM(J144:J151) -> 829.94 | L152: =SUM(L144:L151) -> 92.89
A153: =A137 -> 2 | B153: =B137 -> 4 | C153: Итого за день: | F153: =F143+F152 -> 1320 | G153: =G143+G152 -> 45.55 | H153: =H143+H152 -> 48 | I153: =I143+I152 -> 192.33 | J153: =J143+J152 -> 1389.85 | L153: =L143+L152 -> 139.01
A154: 2 | B154: 5 | C154: Завтрак | D154: фрукты | E154: Яблоки | F154: 100 | G154: 0.4 | H154: 0.4 | I154: 9.8 | J154: 47 | L154: 46.12
D155: гор.блюдо | E155: Каша ячневая молочная | F155: 153 | G155: 10.61 | H155: 13.83 | I155: 41.62 | J155: 331.89
D156: гор.напиток | E156: Какао с молоком | F156: 200 | G156: 4.08 | H156: 3.54 | I156: 2.61 | J156: 58.6
D157: хлеб бел. | E157: Батон нарезной | F157: 50 | G157: 3.75 | H157: 1.45 | I157: 25.7 | J157: 131
D160: итого | F160: =F154+F155+F156+F157 -> 503 | G160: =SUM(G154:G159) -> 18.84 | H160: =SUM(H154:H159) -> 19.22 | I160: =SUM(I154:I159) -> 79.73 | J160: =SUM(J154:J159) -> 568.49 | L160: =L154 -> 46.12
A161: =A154 -> 2 | B161: =B154 -> 5 | C161: Обед | D161: 1 блюдо | E161: Рассольник Ленинградский со сметаной | F161: 205 | G161: 9.94 | H161: 10.82 | I161: 15.56 | J161: 203.9 | L161: 92.89
D162: 2 блюдо | E162: Шницель куриный в томатном соусе | F162: 100 | G162: 10.09 | H162: 9.24 | I162: 12.14 | J162: 205.63
D163: напиток | E163: Компот из свежих яблок | F163: 200 | G163: 0.16 | H163: 0.16 | I163: 10.91 | J163: 46.6
D164: хлеб бел. | E164: Хлеб пшеничный | F164: 20 | G164: 1.52 | H164: 0.16 | I164: 9.84 | J164: 47
D165: хлеб черн. | E165: Хлеб ржаной | F165: 40 | G165: 2.64 | H165: 0.48 | I165: 15.84 | J165: 79.2
D166: гарнир | E166: Рис отварной | F166: 150 | G166: 3.32 | H166: 7.00 | I166: 52.2 | J166: 203
D169: итого | F169: =SUM(F161:F168) -> 715 | G169: =SUM(G161:G168) -> 27.67 | H169: =SUM(H161:H168) -> 27.86 | I169: =SUM(I161:I168) -> 116.49 | J169: =SUM(J161:J168) -> 785.33 | L169: =SUM(L161:L168) -> 92.89
A170: =A154 -> 2 | B170: =B154 -> 5 | C170: Итого за день: | F170: =F160+F169 -> 1218 | G170: =G160+G169 -> 46.51 | H170: =H160+H169 -> 47.08 | I170: =I160+I169 -> 196.22 | J170: =J160+J169 -> 1353.82 | L170: =L160+L169 -> 139.01
C171: Среднее значение за период: | F171: =(F21+F37+F54+F70+F86+F102+F119+F136+F153+F170)/(IF(F21=0,0,1)+IF(F37=0,0,1)+IF(F54=0,0,1)+IF(F70=0,0,1)+IF(F86=0,0,1)+IF(F102=0,0,1)+IF(F119=0,0,1)+IF(F136=0,0,1)+IF(F153=0,0,1)+IF(F170=0,0,1)) -> 1232.8 | G171: =(G21+G37+G54+G70+G86+G102+G119+G136+G153+G170)/(IF(G21=0,0,1)+IF(G37=0,0,1)+IF(G54=0,0,1)+IF(G70=0,0,1)+IF(G86=0,0,1)+IF(G102=0,0,1)+IF(G119=0,0,1)+IF(G136=0,0,1)+IF(G153=0,0,1)+IF(G170=0,0,1)) -> 46.28 | H171: =(H21+H37+H54+H70+H86+H102+H119+H136+H153+H170)/(IF(H21=0,0,1)+IF(H37=0,0,1)+IF(H54=0,0,1)+IF(H70=0,0,1)+IF(H86=0,0,1)+IF(H102=0,0,1)+IF(H119=0,0,1)+IF(H136=0,0,1)+IF(H153=0,0,1)+IF(H170=0,0,1)) -> 47.29 | I171: =(I21+I37+I54+I70+I86+I102+I119+I136+I153+I170)/(IF(I21=0,0,1)+IF(I37=0,0,1)+IF(I54=0,0,1)+IF(I70=0,0,1)+IF(I86=0,0,1)+IF(I102=0,0,1)+IF(I119=0,0,1)+IF(I136=0,0,1)+IF(I153=0,0,1)+IF(I170=0,0,1)) -> 198.554 | J171: =(J21+J37+J54+J70+J86+J102+J119+J136+J153+J170)/(IF(J21=0,0,1)+IF(J37=0,0,1)+IF(J54=0,0,1)+IF(J70=0,0,1)+IF(J86=0,0,1)+IF(J102=0,0,1)+IF(J119=0,0,1)+IF(J136=0,0,1)+IF(J153=0,0,1)+IF(J170=0,0,1)) -> 1414.025 | L171: =(L21+L37+L54+L70+L86+L102+L119+L136+L153+L170)/(IF(L21=0,0,1)+IF(L37=0,0,1)+IF(L54=0,0,1)+IF(L70=0,0,1)+IF(L86=0,0,1)+IF(L102=0,0,1)+IF(L119=0,0,1)+IF(L136=0,0,1)+IF(L153=0,0,1)+IF(L170=0,0,1)) -> 143.62
